bitfinex/quotes_SOLUSD_20241220
["timestamp","ask_amount","ask_price","bid_price","bid_amount"]
[1734672191528,15.89527882,194.47,194.4,15.89527882]
[1734672192035,23.776884,194.47,194.41,15.89527882]
[1734672192224,6.4574,194.53,194.36,0.77141475]
[1734672192225,6.41636349,194.54,194.46,15.89527882]
[1734672192428,15.89527882,194.53,194.46,15.89527882]
[1734672193828,15.89527882,194.52,194.45,15.89527882]
[1734672194002,20.6492052,194.55,194.45,15.89527882]
[1734672194206,15.89527882,194.52,194.45,15.89527882]
[1734672194411,15.83334932,194.52,194.45,15.89527882]
[1734672194604,20.6492052,194.55,194.45,15.89527882]
[1734672194927,23.776884,194.52,194.47,15.89527882]
[1734672195120,23.776884,194.52,194.46,15.89527882]
[1734672195928,23.776884,194.52,194.45,15.89527882]
[1734672197430,15.89527882,194.51,194.44,15.89527882]
[1734672197732,15.89527882,194.49,194.42,15.89527882]
[1734672199034,0.6492052,194.55,194.48,15.89527882]
[1734672199535,16.54448402,194.55,194.48,15.89527882]
[1734672199735,0.6492052,194.55,194.5,15.89527882]
[1734672201549,0.6492052,194.55,194.52,15.89527882]
[1734672201719,0.6492052,194.55,194.54,15.89527882]
[1734672202451,0.6492052,194.55,194.52,15.89527882]
[1734672203046,0.6492052,194.55,194.51,15.89527882]
[1734672203377,0.6492052,194.55,194.52,15.89527882]
[1734672203517,0.6492052,194.55,194.53,15.89527882]
[1734672204239,0.6492052,194.55,194.51,15.89527882]
[1734672204435,0.6492052,194.55,194.52,15.89527882]
[1734672204642,0.6492052,194.55,194.54,15.89527882]
[1734672208740,0.6492052,194.55,194.54,23.80287882]
[1734672208917,0.6492052,194.55,194.54,24.57353018]
[1734672209742,0.6492052,194.55,194.54,48.35041418]
[1734672210253,15.89527882,194.7,194.54,61.20071418]
[1734672210422,15.89527882,194.69,194.62,15.89527882]
[1734672210748,15.89527882,194.7,194.63,15.89527882]
[1734672210915,15.89527882,194.72,194.66,15.89527882]
[1734672211244,0.6492052,194.74,194.68,15.89527882]
[1734672211545,0.6492052,194.74,194.7,15.89527882]
[1734672212842,0.6492052,194.74,194.69,15.89527882]
[1734672213043,0.6492052,194.74,194.71,15.89527882]
[1734672213242,0.6492052,194.74,194.67,0.77023559]
[1734672213243,0.6492052,194.74,194.72,15.89527882]
[1734672214130,0.6492052,194.74,194.73,15.89527882]
[1734672215126,0.6492052,194.74,194.73,16.66526962]
[1734672215435,0.6492052,194.74,194.73,22.78076962]
[1734672216144,15.89527882,194.88,194.73,22.78076962]
[1734672216447,15.89527882,194.87,194.81,15.89527882]
[1734672217342,15.89527882,194.82,194.62,12.8452]
[1734672217520,15.89527882,194.75,194.68,15.89527882]
[1734672217732,15.89527882,194.73,194.66,15.89527882]
[1734672218227,15.89527882,194.71,194.64,15.89527882]
[1734672218423,23.776884,194.7,194.62,15.89527882]
[1734672218961,23.776884,194.7,194.64,25.35722005]
[1734672223156,25.35722005,194.73,194.66,25.35722005]
[1734672223654,45.35722005,194.75,194.66,25.35722005]
[1734672224026,1.6428,194.78,194.71,25.35722005]
[1734672224232,12.8344,194.79,194.71,25.35722005]
[1734672224233,25.35722005,194.79,194.71,25.35722005]
[1734672225253,25.35722005,194.78,194.7,25.35722005]
[1734672225625,23.776884,194.77,194.7,25.35722005]
[1734672226164,23.776884,194.77,194.71,25.35722005]
[1734672226652,23.776884,194.77,194.7,25.35722005]
[1734672227248,12.833,194.81,194.71,25.35722005]
[1734672227452,31.66592005,194.82,194.74,25.35722005]
[1734672227649,25.35722005,194.82,194.75,25.35722005]
[1734672227857,1.6484,194.83,194.76,25.35722005]
[1734672227858,25.35722005,194.83,194.76,25.35722005]
[1734672228032,25.35722005,194.84,194.77,25.35722005]
[1734672228359,25.35722005,194.84,194.76,25.35722005]
[1734672228527,25.35722005,194.84,194.77,25.35722005]
[1734672228850,25.35722005,194.85,194.78,25.35722005]
[1734672230055,23.776884,194.84,194.78,25.35722005]
[1734672230236,23.776884,194.84,194.79,25.35722005]
[1734672230633,23.776884,194.85,194.79,25.35722005]
[1734672230850,49.13410405,194.85,194.78,25.35722005]
[1734672231733,23.776884,194.83,194.76,25.35722005]
[1734672232147,49.13410405,194.83,194.76,25.35722005]
[1734672232855,25.35722005,194.81,194.74,25.35722005]
[1734672233158,25.35722005,194.8,194.73,25.35722005]
[1734672234032,23.776884,194.79,194.73,25.35722005]
[1734672235332,23.776884,194.79,194.74,25.35722005]
[1734672235549,23.776884,194.8,194.74,25.35722005]
[1734672235867,25.35722005,194.81,194.7,6.1362]
[1734672235868,23.776884,194.81,194.75,25.35722005]
[1734672236054,20.0,194.8,194.75,25.35722005]
[1734672236247,23.776884,194.82,194.76,25.35722005]
[1734672236444,25.35722005,194.85,194.78,25.35722005]
[1734672236643,25.35722005,194.84,194.73,20.0]
[1734672236834,25.35722005,194.84,194.77,25.35722005]
[1734672238045,23.776884,194.83,194.77,25.35722005]
[1734672241751,25.35722005,194.96,194.82,25.35722005]
[1734672241941,26.00642525,194.94,194.86,25.35722005]
[1734672242558,25.35722005,194.91,194.84,25.35722005]
[1734672242963,15.81660679,194.91,194.83,15.81660679]
[1734672243355,15.81660679,194.9,194.82,15.81660679]
[1734672243666,15.81660679,194.89,194.82,15.81660679]
[1734672243864,15.81660679,194.9,194.82,15.81660679]
[1734672244054,12.8251,194.93,194.84,15.81660679]
[1734672244055,15.81660679,194.91,194.84,15.81660679]
[1734672244854,20.0,194.9,194.84,15.81660679]
[1734672245058,20.0,194.9,194.84,25.30385971]
[1734672245659,23.776884,194.89,194.84,25.30385971]
[1734672247776,23.776884,194.89,194.83,25.30385971]
[1734672248157,23.776884,194.89,194.84,25.30385971]
[1734672248385,20.0,194.9,194.85,25.30385971]
[1734672248558,20.0,194.89,194.86,25.30385971]
[1734672248764,20.0,194.9,194.86,25.30385971]
[1734672248959,0.6492052,194.94,194.88,25.30385971]
[1734672249164,0.6492052,194.94,194.9,25.30385971]
[1734672249867,0.6492052,194.94,194.89,25.30385971]
[1734672250377,0.6492052,194.94,194.9,25.30385971]
[1734672251687,0.6492052,194.94,194.93,25.30385971]
[1734672252870,31.8175,195.12,194.94,6.3774]
[1734672252871,25.30385971,195.07,194.94,6.3774]
[1734672253069,0.6492052,195.14,195.06,25.30385971]
[1734672253379,25.95306491,195.14,195.07,25.30385971]
[1734672253579,0.6492052,195.14,195.08,25.30385971]
[1734672253784,25.95306491,195.14,195.07,25.30385971]
[1734672254473,20.0,195.11,195.07,25.30385971]
[1734672254670,23.776884,195.1,195.07,25.30385971]
[1734672254874,23.776884,195.1,195.06,25.30385971]
[1734672256795,0.6492052,195.14,195.0,26.07275161]
[1734672256796,0.6492052,195.14,195.09,25.30385971]
[1734672256960,20.6492052,195.14,195.1,25.30385971]
[1734672257157,20.6492052,195.14,195.09,25.30385971]
[1734672257773,20.0,195.13,195.09,25.30385971]
[1734672259002,0.6492052,195.14,195.11,25.30385971]
[1734672259290,0.6492052,195.14,195.13,25.30385971]
[1734672260265,0.6492052,195.14,195.13,26.07224025]
[1734672260601,0.6492052,195.14,195.13,32.62474025]
[1734672261098,0.6492052,195.14,195.13,34.23574025]
[1734672262667,0.6492052,195.14,195.13,33.46735971]
[1734672266982,0.6492052,195.14,195.13,23.92705613]
[1734672268158,0.6492052,195.14,195.08,7.8998]
[1734672268375,0.6492052,195.14,195.12,15.76355613]
[1734672269086,0.6492052,195.14,195.13,15.76355613]
[1734672269586,23.776884,195.13,195.07,15.76355613]
[1734672270082,23.776884,195.13,195.08,15.76355613]
[1734672270988,23.776884,195.13,195.08,25.24241375]
[1734672274008,23.776884,195.13,195.03,1.6296]
[1734672274296,23.776884,195.11,195.06,25.24241375]
[1734672274508,25.24241375,195.12,195.05,25.24241375]
[1734672274797,23.776884,195.11,195.05,25.24241375]
[1734672275384,49.01929775,195.11,195.04,25.24241375]
[1734672275581,23.776884,195.09,195.02,25.24241375]
[1734672275788,49.01929775,195.09,195.02,25.24241375]
[1734672276300,25.24241375,195.08,195.01,25.24241375]
[1734672276615,49.01929775,195.09,195.02,25.24241375]
[1734672277115,23.776884,195.09,195.03,25.24241375]
[1734672277417,49.01929775,195.09,195.02,25.24241375]
[1734672279009,49.01929775,195.09,195.03,25.24241375]
[1734672280715,25.24241375,195.08,195.01,25.24241375]
[1734672281020,23.776884,195.05,194.99,25.24241375]
[1734672284888,23.776884,195.02,194.96,25.24241375]
[1734672285084,25.24241375,195.0,194.93,26.80071375]
[1734672285282,25.24241375,194.99,194.93,26.80071375]
[1734672285581,23.776884,194.98,194.93,26.80071375]
[1734672285944,23.776884,194.98,194.93,25.24241375]
[1734672286414,23.776884,194.98,194.92,25.24241375]
[1734672288311,23.776884,194.98,194.89,25.24241375]
[1734672288312,25.24241375,194.96,194.89,25.24241375]
[1734672288513,49.01929775,194.95,194.88,26.86931375]
[1734672289526,23.776884,194.93,194.87,25.24241375]
[1734672292519,25.24241375,194.96,194.89,25.24241375]
[1734672292700,25.24241375,194.95,194.88,25.24241375]
[1734672293025,15.80737611,194.95,194.88,15.80737611]
[1734672293723,23.776884,194.94,194.89,15.80737611]
[1734672293930,23.776884,194.95,194.89,15.80737611]
[1734672294117,15.80737611,194.96,194.89,15.80737611]
[1734672294118,39.58426011,194.96,194.89,15.80737611]
[1734672294295,15.80737611,194.95,194.88,15.80737611]
[1734672294625,23.776884,194.94,194.88,15.80737611]
[1734672295932,39.58426011,194.94,194.87,15.80737611]
[1734672296818,23.776884,194.94,194.88,15.80737611]
[1734672297320,15.80737611,194.95,194.85,20.0]
[1734672297508,15.80737611,194.95,194.88,15.80737611]
[1734672298497,15.80737611,194.95,194.85,20.0]
[1734672298698,15.80737611,194.93,194.85,35.80737611]
[1734672298894,15.80737611,194.94,194.87,15.80737611]
[1734672299094,15.80737611,194.95,194.88,15.80737611]
[1734672301417,20.0,194.98,194.92,15.80737611]
[1734672301601,15.80737611,194.97,194.9,15.80737611]
[1734672301805,15.80737611,194.97,194.86,0.7695738]
[1734672301806,15.80737611,194.95,194.88,15.80737611]
[1734672302202,15.80737611,194.94,194.87,15.80737611]
[1734672302402,15.80737611,194.95,194.88,15.80737611]
[1734672302732,15.80737611,194.96,194.89,15.80737611]
[1734672304017,35.80737611,194.98,194.91,15.80737611]
[1734672305539,15.80737611,194.99,194.92,15.80737611]
[1734672306813,15.80737611,195.01,194.94,15.80737611]
[1734672307008,15.80737611,195.02,194.95,15.80737611]
[1734672307328,15.80737611,195.0,194.94,15.80737611]
[1734672307509,15.80737611,195.0,194.93,15.80737611]
[1734672307701,15.80737611,195.0,194.92,1.6379]
[1734672307702,15.80737611,195.01,194.94,15.80737611]
[1734672309830,15.80737611,194.97,194.9,15.80737611]
[1734672310047,15.80737611,194.95,194.88,15.80737611]
[1734672310210,15.80737611,194.94,194.87,17.35967611]
[1734672310628,15.80737611,194.93,194.87,1.5523]
[1734672310941,15.80737611,194.95,194.88,15.80737611]
[1734672311122,15.80737611,194.97,194.89,15.80737611]
[1734672312228,15.80737611,194.97,194.87,2.32179617]
[1734672312429,15.80737611,194.97,194.9,15.80737611]
[1734672314045,15.80737611,194.98,194.91,15.80737611]
[1734672314338,15.80737611,194.99,194.92,15.80737611]
[1734672316348,6.6099,195.05,194.96,15.80737611]
[1734672316349,15.80737611,195.03,194.96,15.80737611]
[1734672316646,15.80737611,195.02,194.95,15.80737611]
[1734672317219,15.80737611,195.02,194.91,0.76921816]
[1734672317220,15.80737611,195.01,194.94,15.80737611]
[1734672317849,15.80737611,195.02,194.95,15.80737611]
[1734672318751,15.80737611,195.03,194.96,15.80737611]
[1734672319121,15.80737611,195.01,194.94,15.80737611]
[1734672319338,15.80737611,195.0,194.93,15.80737611]
[1734672319852,15.80737611,194.98,194.91,15.80737611]
[1734672321046,15.80737611,194.99,194.91,15.80737611]
[1734672321438,15.80737611,194.98,194.91,15.80737611]
[1734672321622,15.80737611,194.99,194.92,15.80737611]
[1734672323473,15.80737611,194.98,194.91,15.80737611]
[1734672323966,15.80737611,194.97,194.9,15.80737611]
[1734672324155,15.80737611,194.98,194.9,15.80737611]
[1734672324358,15.80737611,194.98,194.91,15.80737611]
[1734672325646,15.80737611,194.93,194.81,7.9443]
[1734672325968,15.80737611,194.89,194.82,15.80737611]
[1734672326263,6.346,194.99,194.81,7.9443]
[1734672326264,15.80737611,194.87,194.81,1.5545]
[1734672327151,15.80737611,194.87,194.8,15.80737611]
[1734672327355,15.80737611,194.87,194.77,1.5545]
[1734672327356,15.80737611,194.85,194.78,15.80737611]
[1734672327530,15.80737611,194.84,194.77,17.36187611]
[1734672327934,15.80737611,194.83,194.77,1.5545]
[1734672328547,15.80737611,194.86,194.79,15.80737611]
[1734672328748,15.80737611,194.87,194.8,15.80737611]
[1734672329642,15.80737611,194.86,194.79,15.80737611]
[1734672330438,19.1734,194.9,194.77,1.5545]
[1734672330439,15.80737611,194.87,194.8,15.80737611]
[1734672330641,19.1734,194.9,194.77,1.5545]
[1734672330642,15.80737611,194.86,194.77,1.5545]
[1734672331023,15.80737611,194.84,194.77,17.36187611]
[1734672333480,15.80737611,194.78,194.66,1.6231]
[1734672333647,15.80737611,194.74,194.66,17.43047611]
[1734672334772,15.80737611,194.72,194.65,6.2365]
[1734672334976,15.80737611,194.72,194.64,23.8126435]
[1734672335173,15.80737611,194.72,194.64,15.80737611]
[1734672335671,15.80737611,194.69,194.62,15.80737611]
[1734672336283,15.80737611,194.69,194.61,17.43047611]
[1734672336587,20.0,194.74,194.64,15.80737611]
[1734672336791,20.0,194.74,194.66,15.80737611]
[1734672336792,15.80737611,194.73,194.66,15.80737611]
[1734672339695,15.80737611,194.72,194.65,15.80737611]
[1734672341066,1.5456,194.8,194.69,15.80737611]
[1734672341268,15.80737611,194.76,194.69,15.80737611]
[1734672341686,15.80737611,194.77,194.66,20.0]
[1734672341888,15.80737611,194.76,194.69,15.80737611]
[1734672344800,15.80737611,194.75,194.67,15.80737611]
[1734672344966,15.80737611,194.72,194.65,15.80737611]
[1734672345479,15.80737611,194.71,194.64,15.80737611]
[1734672346090,15.80737611,194.7,194.63,15.80737611]
[1734672346268,15.80737611,194.69,194.62,15.80737611]
[1734672348672,15.80737611,194.67,194.6,22.04387611]
[1734672348889,15.80737611,194.67,194.6,15.80737611]
[1734672349082,15.80737611,194.68,194.61,15.80737611]
[1734672349798,15.80737611,194.69,194.62,15.80737611]
[1734672350005,15.80737611,194.73,194.65,15.80737611]
[1734672350197,15.80737611,194.73,194.66,15.80737611]
[1734672350499,15.80737611,194.72,194.64,15.80737611]
[1734672350673,19.2307,194.77,194.57,2.3083668]
[1734672350674,15.80737611,194.69,194.62,15.80737611]
[1734672351086,15.80737611,194.69,194.61,15.80737611]
[1734672352208,15.80737611,194.68,194.6,15.80737611]
[1734672352379,15.80737611,194.67,194.6,15.80737611]
[1734672352700,15.80737611,194.66,194.59,15.80737611]
[1734672353400,15.80737611,194.65,194.58,15.80737611]
[1734672353598,15.80737611,194.63,194.57,1.5379]
[1734672353900,15.80737611,194.62,194.57,1.5379]
[1734672354709,15.80737611,194.62,194.56,6.4209]
[1734672354885,15.80737611,194.62,194.55,15.80737611]
[1734672355085,15.80737611,194.61,194.54,15.80737611]
[1734672355611,15.80737611,194.59,194.52,1.5427]
[1734672355793,15.80737611,194.59,194.52,17.35007611]
[1734672355984,15.80737611,194.58,194.52,1.5427]
[1734672356310,15.80737611,194.58,194.5,15.80737611]
[1734672356514,12.845,194.63,194.49,29.0363495]
[1734672356515,15.80737611,194.59,194.52,15.80737611]
[1734672357003,15.80737611,194.62,194.54,15.80737611]
[1734672357679,15.80737611,194.61,194.53,15.80737611]
[1734672358799,15.80737611,194.61,194.54,15.80737611]
[1734672360004,15.80737611,194.61,194.53,15.80737611]
[1734672360500,20.0,194.65,194.57,15.80737611]
[1734672360705,15.80737611,194.66,194.59,15.80737611]
[1734672361791,15.80737611,194.64,194.57,15.80737611]
[1734672362805,15.80737611,194.65,194.58,15.80737611]
[1734672363698,1.6162,194.71,194.62,15.80737611]
[1734672363888,15.80737611,194.7,194.63,15.80737611]
[1734672365309,15.80737611,194.7,194.62,15.80737611]
[1734672365492,15.80737611,194.69,194.62,15.80737611]
[1734672365697,15.80737611,194.7,194.62,15.80737611]
[1734672366306,23.776884,194.73,194.63,15.80737611]
[1734672366513,15.80737611,194.73,194.66,15.80737611]
[1734672367888,15.80737611,194.72,194.66,15.80737611]
[1734672368199,15.80737611,194.71,194.65,1.5453]
[1734672368611,1.6523,194.76,194.65,1.5453]
[1734672368612,15.80737611,194.72,194.65,1.5453]
[1734672368797,15.80737611,194.72,194.65,17.35267611]
[1734672369718,15.80737611,194.71,194.65,1.5453]
[1734672370911,15.80737611,194.72,194.65,1.5453]
[1734672371287,15.80737611,194.73,194.66,15.80737611]
[1734672372228,15.80737611,194.75,194.67,15.80737611]
[1734672372389,15.80737611,194.75,194.68,15.80737611]
[1734672373031,15.80737611,194.76,194.69,15.80737611]
[1734672373315,1.6398,194.81,194.68,15.80737611]
[1734672373316,15.80737611,194.75,194.68,15.80737611]
[1734672373516,15.80737611,194.74,194.67,15.80737611]
[1734672374235,15.80737611,194.75,194.68,15.80737611]
[1734672375402,15.80737611,194.77,194.7,15.80737611]
[1734672375602,15.80737611,194.78,194.66,12.8429]
[1734672375915,15.80737611,194.79,194.72,15.80737611]
[1734672376110,15.80737611,194.79,194.66,12.8429]
[1734672376317,15.80737611,194.82,194.75,15.80737611]
[1734672376510,15.80737611,194.83,194.76,15.80737611]
[1734672376709,15.80737611,194.84,194.77,15.80737611]
[1734672376898,15.80737611,194.84,194.78,15.80737611]
[1734672377213,15.80737611,194.83,194.76,35.80737611]
[1734672378211,15.80737611,194.82,194.76,20.0]
[1734672378517,15.80737611,194.83,194.76,35.80737611]
[1734672379723,15.80737611,194.86,194.79,15.80737611]
[1734672379923,15.80737611,194.87,194.8,15.80737611]
[1734672380103,15.80737611,194.87,194.76,20.0]
[1734672380104,15.80737611,194.89,194.82,15.80737611]
[1734672380426,15.80737611,194.89,194.76,20.76987735]
[1734672380427,15.80737611,194.9,194.84,15.80737611]
[1734672380593,15.80737611,194.91,194.84,15.80737611]
[1734672381121,15.80737611,194.9,194.83,15.80737611]
[1734672382014,15.80737611,194.89,194.82,15.80737611]
[1734672382316,15.80737611,194.88,194.81,15.80737611]
[1734672383626,15.80737611,194.87,194.8,35.80737611]
[1734672384226,15.80737611,194.88,194.82,15.80737611]
[1734672384418,15.80737611,194.9,194.83,15.80737611]
[1734672385125,15.80737611,194.89,194.82,15.80737611]
[1734672385825,15.80737611,194.88,194.8,35.80737611]
[1734672386020,15.80737611,194.87,194.8,35.80737611]
[1734672386322,15.80737611,194.85,194.78,15.80737611]
[1734672386915,15.80737611,194.86,194.79,15.80737611]
[1734672387327,15.80737611,194.88,194.81,15.80737611]
[1734672387536,15.80737611,194.89,194.82,15.80737611]
[1734672388543,15.80737611,194.9,194.83,15.80737611]
[1734672388738,15.80737611,194.88,194.81,20.0]
[1734672388907,15.80737611,194.87,194.8,15.80737611]
[1734672389109,15.80737611,194.88,194.81,15.80737611]
[1734672389507,15.80737611,194.9,194.83,15.80737611]
[1734672389817,15.80737611,194.91,194.84,15.80737611]
[1734672390130,15.80737611,194.9,194.83,15.80737611]
[1734672390310,15.80737611,194.91,194.84,15.80737611]
[1734672391410,23.776884,194.94,194.77,23.776884]
[1734672391411,15.80737611,194.86,194.77,20.0]
[1734672391611,15.80737611,194.86,194.79,15.80737611]
[1734672392922,15.80737611,194.85,194.78,15.80737611]
[1734672393131,15.80737611,194.84,194.77,35.80737611]
[1734672393437,15.80737611,194.83,194.76,15.80737611]
[1734672393809,15.80737611,194.84,194.77,15.80737611]
[1734672394946,15.80737611,194.84,194.76,35.80737611]
[1734672395838,15.80737611,194.79,194.69,1.5814]
[1734672396139,15.80737611,194.76,194.69,17.38877611]
[1734672396339,15.80737611,194.75,194.69,1.5814]
[1734672396643,15.80737611,194.74,194.67,15.80737611]
[1734672396943,15.80737611,194.74,194.66,15.80737611]
[1734672397150,15.80737611,194.71,194.64,1.5814]
[1734672398244,15.80737611,194.71,194.64,17.38877611]
[1734672398572,15.80737611,194.72,194.65,15.80737611]
[1734672398722,15.80737611,194.74,194.67,15.80737611]
[1734672399547,15.80737611,194.74,194.66,15.80737611]
[1734672400443,15.80737611,194.7,194.62,15.80737611]
[1734672401420,15.80737611,194.7,194.63,15.80737611]
[1734672402248,15.80737611,194.69,194.62,15.80737611]
[1734672402455,15.80737611,194.68,194.6,15.80737611]
[1734672405061,15.80737611,194.68,194.61,15.80737611]
[1734672406088,20.0,194.69,194.63,15.80737611]
[1734672406249,15.80737611,194.71,194.63,15.80737611]
[1734672407279,20.0,194.71,194.64,15.80737611]
[1734672407553,15.80737611,194.72,194.64,15.80737611]
[1734672408128,15.80737611,194.72,194.65,15.80737611]
[1734672408449,15.80737611,194.71,194.64,15.80737611]
[1734672408749,15.80737611,194.71,194.6,23.776884]
[1734672408750,15.80737611,194.75,194.68,15.80737611]
[1734672408950,15.80737611,194.77,194.69,15.80737611]
[1734672409855,15.80737611,194.77,194.7,15.80737611]
[1734672410150,15.80737611,194.77,194.69,15.80737611]
[1734672410741,15.80737611,194.77,194.7,15.80737611]
[1734672410927,15.80737611,194.8,194.73,15.80737611]
[1734672411128,15.80737611,194.81,194.73,15.80737611]
[1734672411329,15.80737611,194.8,194.73,15.80737611]
[1734672412337,15.80737611,194.78,194.71,15.80737611]
[1734672413054,15.80737611,194.77,194.7,15.80737611]
[1734672413238,15.80737611,194.76,194.69,15.80737611]
[1734672413438,15.80737611,194.77,194.7,15.80737611]
[1734672414255,15.80737611,194.78,194.7,15.80737611]
[1734672414423,15.80737611,194.76,194.68,1.5149]
[1734672414627,15.80737611,194.75,194.68,17.32227611]
[1734672415246,15.80737611,194.75,194.68,1.5149]
[1734672416029,15.80737611,194.75,194.68,17.32227611]
[1734672416247,15.80737611,194.76,194.68,17.32227611]
[1734672416554,15.80737611,194.78,194.71,15.80737611]
[1734672416757,15.80737611,194.79,194.72,15.80737611]
[1734672417135,15.80737611,194.8,194.73,15.80737611]
[1734672417836,15.80737611,194.82,194.74,15.80737611]
[1734672418349,1.5643,194.84,194.68,1.5149]
[1734672418350,15.80737611,194.77,194.7,15.80737611]
[1734672419059,15.80737611,194.78,194.71,15.80737611]
[1734672419761,15.80737611,194.76,194.69,15.80737611]
[1734672419944,15.80737611,194.76,194.68,23.38527611]
[1734672420546,15.80737611,194.74,194.68,7.5779]
[1734672420742,15.80737611,194.76,194.68,23.38527611]
[1734672420941,15.80737611,194.76,194.69,15.80737611]
[1734672421853,15.80737611,194.76,194.68,23.38527611]
[1734672422056,7.87906296,194.95,194.78,20.0]
[1734672422353,7.87906296,194.95,194.84,15.80737611]
[1734672422354,15.80737611,194.93,194.84,15.80737611]
[1734672422556,15.80737611,194.87,194.78,20.0]
[1734672422747,15.80737611,194.87,194.78,15.80737611]
[1734672423263,15.80737611,194.89,194.8,15.80737611]
[1734672423857,15.80737611,194.87,194.8,15.80737611]
[1734672424538,20.0,194.89,194.8,15.80737611]
[1734672424734,35.80737611,194.89,194.82,15.80737611]
[1734672426140,15.80737611,194.91,194.82,15.80737611]
[1734672428067,15.80737611,194.89,194.82,15.80737611]
[1734672429053,15.80737611,194.87,194.76,20.0]
[1734672429253,15.80737611,194.87,194.79,15.80737611]
[1734672429450,15.80737611,194.86,194.78,15.80737611]
[1734672429862,15.80737611,194.85,194.78,15.80737611]
[1734672430169,15.80737611,194.84,194.73,7.7169]
[1734672430480,12.8279,194.89,194.75,15.80737611]
[1734672430481,15.80737611,194.82,194.75,15.80737611]
[1734672430771,15.80737611,194.84,194.77,15.80737611]
[1734672431273,15.80737611,194.85,194.78,15.80737611]
[1734672431747,15.80737611,194.79,194.65,8.2495]
[1734672431947,15.80737611,194.78,194.7,15.80737611]
[1734672432355,15.80737611,194.78,194.71,15.80737611]
[1734672433450,15.80737611,194.77,194.65,8.2495]
[1734672433644,15.80737611,194.77,194.7,15.80737611]
[1734672433849,15.80737611,194.79,194.72,15.80737611]
[1734672434164,15.80737611,194.81,194.74,15.80737611]
[1734672434466,35.80737611,194.83,194.76,15.80737611]
[1734672434968,20.0,194.83,194.77,15.80737611]
[1734672435269,28.63747611,194.86,194.78,15.80737611]
[1734672436096,15.80737611,194.86,194.78,15.80737611]
[1734672436256,15.80737611,194.87,194.8,15.80737611]
[1734672437151,15.80737611,194.86,194.78,15.80737611]
[1734672437365,15.80737611,194.85,194.78,15.80737611]
[1734672439889,15.80737611,194.86,194.78,15.80737611]
[1734672440089,15.80737611,194.88,194.81,15.80737611]
[1734672440284,15.80737611,194.89,194.81,15.80737611]
[1734672440677,15.80737611,194.88,194.81,15.80737611]
[1734672440882,15.80737611,194.88,194.8,15.80737611]
[1734672441972,15.80737611,194.87,194.79,15.80737611]
[1734672442489,15.80737611,194.88,194.81,15.80737611]
[1734672442680,35.80737611,194.88,194.81,15.80737611]
[1734672442994,20.0,194.88,194.81,15.80737611]
[1734672444376,20.0,194.89,194.82,15.80737611]
[1734672444580,20.0,194.88,194.83,15.80737611]
[1734672444994,15.80737611,194.91,194.83,15.80737611]
[1734672445195,15.80737611,194.92,194.85,15.80737611]
[1734672445378,15.80737611,194.94,194.87,15.80737611]
[1734672446179,15.80737611,194.94,194.86,15.80737611]
[1734672446491,15.80737611,194.93,194.86,15.80737611]
[1734672446802,15.80737611,194.92,194.85,15.80737611]
[1734672446978,15.80737611,194.92,194.84,17.34637611]
[1734672447180,15.80737611,194.91,194.84,17.34637611]
[1734672447385,15.80737611,194.9,194.84,1.539]
[1734672448299,15.80737611,194.91,194.84,17.34637611]
[1734672448979,15.74564987,194.91,194.84,17.34637611]
[1734672449680,15.80737611,194.92,194.84,17.34637611]
[1734672450403,15.80737611,194.91,194.84,17.34637611]
[1734672451824,15.80737611,194.88,194.81,15.80737611]
[1734672453022,15.80737611,194.87,194.8,15.80737611]
[1734672453916,15.80737611,194.88,194.81,15.80737611]
[1734672456102,15.80737611,194.88,194.82,15.80737611]
[1734672456614,15.80737611,194.88,194.79,1.5693]
[1734672456822,15.80737611,194.87,194.81,15.80737611]
[1734672457491,35.80737611,194.88,194.81,15.80737611]
[1734672458653,15.80737611,194.87,194.81,15.80737611]
[1734672458913,15.80737611,194.87,194.8,15.80737611]
[1734672460306,35.80737611,194.88,194.81,15.80737611]
[1734672462225,15.80737611,194.92,194.85,15.80737611]
[1734672462465,15.80737611,194.92,194.81,0.76981714]
[1734672462466,15.80737611,194.95,194.88,15.80737611]
[1734672463056,15.80737611,194.96,194.89,15.80737611]
[1734672464134,15.80737611,194.95,194.89,15.80737611]
[1734672465972,15.80737611,194.96,194.89,15.80737611]
[1734672466180,35.80737611,194.97,194.89,15.80737611]
[1734672466348,15.80737611,194.96,194.89,15.80737611]
[1734672466542,15.80737611,194.95,194.88,15.80737611]
[1734672467352,15.80737611,194.97,194.89,15.80737611]
[1734672467654,15.80737611,194.98,194.91,15.80737611]
[1734672467841,15.80737611,194.98,194.89,0.76948042]
[1734672467842,15.80737611,194.99,194.92,15.80737611]
[1734672468232,15.80737611,194.98,194.91,15.80737611]
[1734672469769,15.80737611,194.99,194.91,15.80737611]
[1734672471251,15.80737611,194.97,194.89,35.80737611]
[1734672471753,15.80737611,194.96,194.89,15.80737611]
[1734672472063,15.80737611,194.95,194.88,15.80737611]
[1734672473760,15.80737611,194.96,194.88,15.80737611]
[1734672473965,15.80737611,194.91,194.82,1.5186]